[Event "Tournoi de MI de l'Echiquier du Pays de Bray"]
[Site "Gournay-en-Bray, France"]
[Date "2023.05.19"]
[Round "7.5"]
[White "MOUHAMAD, Joachim"]
[Black "TEREKHOV, Andrey"]
[Result "1-0"]
[TimeControl "1h30/40 + 30 (30s/c)"]
[WhiteTitle "FM"]
[BlackTitle "FM"]
[WhiteFideId "656410"]
[BlackFideId "4121481"]
[WhiteElo "2238"]
[BlackElo "2314"]

1. e4 {[%clk 01:30:44]} {[%emt 00:00:14]} c5 {[%clk 01:30:55]} {[%emt
00:00:05]} 2. Nf3 {[%clk 01:30:40]} {[%emt 00:00:34]} e6 {[%clk 01:31:17]}
{[%emt 00:00:08]} 3. d4 {[%clk 01:31:00]} {[%emt 00:00:09]} cxd4 {[%clk
01:31:43]} {[%emt 00:00:05]} 4. Nxd4 {[%clk 01:31:21]} {[%emt 00:00:08]} Nc6
{[%clk 01:32:06]} {[%emt 00:00:07]} 5. Nc3 {[%clk 01:31:20]} {[%emt 00:00:30]}
a6 {[%clk 01:32:21]} {[%emt 00:00:17]} 6. Nxc6 {[%clk 01:26:52]} {[%emt
00:04:57]} bxc6 {[%clk 01:32:29]} {[%emt 00:00:22]} 7. Bd3 {[%clk 01:26:57]}
{[%emt 00:00:24]} d5 {[%clk 01:32:47]} {[%emt 00:00:13]} 8. O-O {[%clk
01:26:27]} {[%emt 00:00:59]} Nf6 {[%clk 01:32:50]} {[%emt 00:00:29]} 9. Re1
{[%clk 01:25:58]} {[%emt 00:00:58]} Be7 {[%clk 01:32:50]} {[%emt 00:00:30]} 10.
e5 {[%clk 01:25:59]} {[%emt 00:00:29]} Nd7 {[%clk 01:32:53]} {[%emt 00:00:27]}
11. Qg4 {[%clk 01:26:15]} {[%emt 00:00:13]} Kf8 {[%clk 01:32:45]} {[%emt
00:00:38]} 12. Bd2 {[%clk 01:17:45]} {[%emt 00:09:00]} Rb8 {[%clk 01:23:05]}
{[%emt 00:10:12]} 13. b3 {[%clk 01:17:25]} {[%emt 00:00:49]} h5 {[%clk
01:14:35]} {[%emt 00:09:28]} 14. Qf3 {[%clk 01:06:55]} {[%emt 00:10:32]} Kg8
{[%clk 01:13:25]} {[%emt 00:01:40]} 15. Na4 {[%clk 01:06:56]} {[%emt 00:00:29]}
c5 {[%clk 01:10:36]} {[%emt 00:03:20]} 16. c4 {[%clk 00:55:26]} {[%emt
00:12:00]} d4 {[%clk 01:10:07]} {[%emt 00:00:59]} 17. Qe2 {[%clk 00:53:29]}
{[%emt 00:02:27]} g6 {[%clk 01:08:19]} {[%emt 00:02:18]} 18. Nb2 {[%clk
00:51:51]} {[%emt 00:02:08]} Kg7 {[%clk 01:07:20]} {[%emt 00:01:29]} 19. Bc2
{[%clk 00:52:07]} {[%emt 00:00:14]} Bb7 {[%clk 00:58:31]} {[%emt 00:09:20]} 20.
Nd3 {[%clk 00:52:25]} {[%emt 00:00:11]} Qc7 {[%clk 00:58:21]} {[%emt 00:00:41]}
21. Nf4 {[%clk 00:45:23]} {[%emt 00:07:32]} Qc6 {[%clk 00:34:48]} {[%emt
00:24:04]} 22. f3 {[%clk 00:40:49]} {[%emt 00:05:03]} h4 {[%clk 00:28:13]}
{[%emt 00:07:05]} 23. Rab1 {[%clk 00:39:23]} {[%emt 00:01:56]} a5 {[%clk
00:19:05]} {[%emt 00:09:39]} 24. a3 {[%clk 00:38:21]} {[%emt 00:01:32]} Qa6
{[%clk 00:13:39]} {[%emt 00:05:56]} 25. Bd3 {[%clk 00:37:36]} {[%emt 00:01:14]}
Ba8 {[%clk 00:12:15]} {[%emt 00:01:55]} 26. Bc2 {[%clk 00:23:55]} {[%emt
00:14:11]} Rbg8 {[%clk 00:09:54]} {[%emt 00:02:51]} 27. h3 {[%clk 00:23:37]}
{[%emt 00:00:48]} Rb8 {[%clk 00:07:59]} {[%emt 00:02:26]} 28. Rec1 {[%clk
00:20:24]} {[%emt 00:03:42]} Bd8 {[%clk 00:04:49]} {[%emt 00:03:41]} 29. Re1
{[%clk 00:18:26]} {[%emt 00:02:27]} Bc7 {[%clk 00:04:20]} {[%emt 00:00:59]} 30.
Nd3 {[%clk 00:16:59]} {[%emt 00:01:57]} Rh5 {[%clk 00:04:19]} {[%emt 00:00:31]}
31. Bf4 {[%clk 00:13:52]} {[%emt 00:03:37]} a4 {[%clk 00:04:12]} {[%emt
00:00:37]} 32. b4 {[%clk 00:13:51]} {[%emt 00:00:30]} cxb4 {[%clk 00:04:04]}
{[%emt 00:00:39]} 33. axb4 {[%clk 00:13:54]} {[%emt 00:00:27]} Qxc4 {[%clk
00:03:08]} {[%emt 00:01:26]} 34. Bxa4 {[%clk 00:14:07]} {[%emt 00:00:17]} Qd5
{[%clk 00:02:39]} {[%emt 00:00:59]} 35. Rbc1 {[%clk 00:13:01]} {[%emt
00:01:36]} Nb6 {[%clk 00:01:25]} {[%emt 00:01:44]} 36. Rxc7 {[%clk 00:11:52]}
{[%emt 00:01:40]} Nxa4 {[%clk 00:01:51]} {[%emt 00:00:03]} 37. Qd2 {[%clk
00:11:22]} {[%emt 00:01:00]} Nc3 {[%clk 00:00:40]} {[%emt 00:01:42]} 38. Bg5
{[%clk 00:11:22]} {[%emt 00:00:30]} Bc6 {[%clk 00:00:35]} {[%emt 00:00:35]} 39.
Nf4 {[%clk 00:10:42]} {[%emt 00:01:10]} Bb7 {[%emt 00:00:18]} 1-0

[ePGN "0.1;DGT LiveChess/2.2.5"]

[Event "Tournoi de MI de l'Echiquier du Pays de Bray"]
[Site "Gournay-en-Bray, France"]
[Date "2023.05.20"]
[Round "8.1"]
[White "TEREKHOV, Andrey"]
[Black "DECUIGNIERE, Tom"]
[Result "1/2-1/2"]
[TimeControl "1h30/40 + 30 (30s/c)"]
[WhiteTitle "FM"]
[BlackTitle "FM"]
[WhiteFideId "4121481"]
[BlackFideId "26093820"]
[WhiteElo "2314"]
[BlackElo "2396"]

1. d4 {[%clk 01:30:57]} {[%emt 00:00:01]} Nf6 {[%clk 01:30:54]} {[%emt
00:00:07]} 2. g3 {[%clk 01:31:16]} {[%emt 00:00:12]} e6 {[%clk 01:30:24]}
{[%emt 00:01:00]} 3. Bg2 {[%clk 01:31:27]} {[%emt 00:00:18]} d5 {[%clk
01:29:54]} {[%emt 00:01:00]} 4. Nf3 {[%clk 01:31:43]} {[%emt 00:00:14]} h6
{[%clk 01:20:09]} {[%emt 00:10:15]} 5. O-O {[%clk 01:31:41]} {[%emt 00:00:32]}
Bd6 {[%clk 01:20:34]} {[%emt 00:00:05]} 6. c4 {[%clk 01:31:57]} {[%emt
00:00:15]} O-O {[%clk 01:15:20]} {[%emt 00:05:44]} 7. Qc2 {[%clk 01:31:10]}
{[%emt 00:01:16]} Nbd7 {[%clk 01:08:02]} {[%emt 00:07:48]} 8. Nbd2 {[%clk
01:25:48]} {[%emt 00:05:53]} c5 {[%clk 01:05:59]} {[%emt 00:02:34]} 9. cxd5
{[%clk 01:25:46]} {[%emt 00:00:32]} exd5 {[%clk 01:06:15]} {[%emt 00:00:14]} 10.
b3 {[%clk 01:03:09]} {[%emt 00:23:07]} b6 {[%clk 01:02:59]} {[%emt 00:03:45]}
11. dxc5 {[%clk 01:01:57]} {[%emt 00:01:42]} Nxc5 {[%clk 00:59:47]} {[%emt
00:03:42]} 12. Nd4 {[%clk 00:50:48]} {[%emt 00:11:38]} Re8 {[%clk 00:59:00]}
{[%emt 00:01:17]} 13. b4 {[%clk 00:39:14]} {[%emt 00:12:05]} Ne6 {[%clk
00:52:27]} {[%emt 00:07:02]} 14. Nc6 {[%clk 00:35:32]} {[%emt 00:04:13]} Qd7
{[%clk 00:40:31]} {[%emt 00:12:25]} 15. Bb2 {[%clk 00:29:58]} {[%emt 00:06:04]}
Bb7 {[%clk 00:39:26]} {[%emt 00:01:35]} 16. b5 {[%clk 00:28:58]} {[%emt
00:01:30]} d4 {[%clk 00:33:35]} {[%emt 00:06:21]} 17. Nf3 {[%clk 00:26:56]}
{[%emt 00:02:32]} Bc5 {[%clk 00:32:01]} {[%emt 00:02:04]} 18. Rad1 {[%clk
00:24:08]} {[%emt 00:03:17]} Rac8 {[%clk 00:31:01]} {[%emt 00:01:31]} 19. Nfe5
{[%clk 00:15:29]} {[%emt 00:09:09]} Qc7 {[%clk 00:27:50]} {[%emt 00:03:42]} 20.
Qf5 {[%clk 00:12:11]} {[%emt 00:03:48]} a6 {[%clk 00:28:04]} {[%emt 00:00:16]}
21. a4 {[%clk 00:12:32]} {[%emt 00:00:09]} Ra8 {[%clk 00:26:27]} {[%emt
00:02:07]} 22. Ra1 {[%clk 00:12:25]} {[%emt 00:00:37]} Nd8 {[%clk 00:24:17]}
{[%emt 00:02:40]} 23. e3 {[%clk 00:04:30]} {[%emt 00:08:26]} Nxc6 {[%clk
00:17:43]} {[%emt 00:07:03]} 24. Nxc6 {[%clk 00:04:34]} {[%emt 00:00:25]} dxe3
{[%clk 00:08:52]} {[%emt 00:09:21]} 25. fxe3 {[%clk 00:05:00]} {[%emt
00:00:04]} Rxe3 {[%clk 00:08:37]} {[%emt 00:00:45]} 26. Kh1 {[%clk 00:05:22]}
{[%emt 00:00:08]} Re6 {[%clk 00:07:58]} {[%emt 00:01:10]} 27. Rae1 {[%clk
00:02:38]} {[%emt 00:03:14]} Rae8 {[%clk 00:06:50]} {[%emt 00:01:37]} 28. Rxe6
{[%clk 00:03:02]} {[%emt 00:00:06]} Rxe6 {[%clk 00:07:13]} {[%emt 00:00:07]} 29.
Be5 {[%clk 00:02:39]} {[%emt 00:00:53]} Qc8 {[%clk 00:03:31]} {[%emt 00:04:12]}
30. Bd5 {[%clk 00:01:20]} {[%emt 00:01:50]} axb5 {[%clk 00:02:14]} {[%emt
00:01:46]} 31. axb5 {[%clk 00:01:44]} {[%emt 00:00:05]} Re8 {[%clk 00:00:34]}
{[%emt 00:02:10]} 32. Bxf6 {[%clk 00:01:00]} {[%emt 00:01:14]} Qxf5 {[%clk
00:00:56]} {[%emt 00:00:07]} 33. Rxf5 {[%clk 00:01:23]} {[%emt 00:00:08]} Re1+
{[%clk 00:00:44]} {[%emt 00:00:42]} 34. Kg2 {[%clk 00:01:44]} {[%emt 00:00:09]}
Rg1+ {[%clk 00:00:45]} {[%emt 00:00:29]} 35. Kf3 {[%clk 00:01:43]} {[%emt
00:00:31]} Rf1+ {[%clk 00:00:36]} {[%emt 00:00:39]} 36. Ke4 {[%clk 00:01:32]}
{[%emt 00:00:41]} Re1+ {[%clk 00:01:03]} {[%emt 00:00:03]} 37. Kd3 {[%clk
00:01:32]} {[%emt 00:00:30]} gxf6 {[%clk 00:00:39]} {[%emt 00:00:54]} 38. Rxf6
{[%clk 00:00:58]} {[%emt 00:01:04]} Rd1+ {[%clk 00:00:50]} {[%emt 00:00:19]} 39.
Ke4 {[%clk 00:00:48]} {[%emt 00:00:40]} Re1+ {[%clk 00:00:50]} {[%emt
00:00:29]} 40. Kd3 {[%clk 00:01:12]} {[%emt 00:00:06]} Rd1+ {[%clk 00:01:07]}
{[%emt 00:00:13]} 41. Kc4 {[%clk 00:23:27]} {[%emt 00:08:45]} Rc1+ {[%clk
00:31:47]} {[%emt 00:00:20]} 42. Kb3 {[%clk 00:21:34]} {[%emt 00:02:23]} Rb1+
{[%clk 00:32:00]} {[%emt 00:00:17]} 43. Kc4 {[%clk 00:16:14]} {[%emt 00:05:50]}
1/2-1/2

[Event "Tournoi de MI de l'Echiquier du Pays de Bray"]
[Site "Gournay-en-Bray, France"]
[Date "2023.05.20"]
[Round "8.2"]
[White "HÖGLAUER, Patrick"]
[Black "DGEBUADZE, Alexander"]
[Result "1/2-1/2"]
[TimeControl "1h30/40 + 30 (30s/c)"]
[WhiteTitle "FM"]
[BlackTitle "GM"]
[WhiteFideId "1270548"]
[BlackFideId "203882"]
[WhiteElo "2280"]
[BlackElo "2435"]

1. d4 {[%clk 01:30:57]} {[%emt 00:00:03]} Nf6 {[%clk 01:30:26]} {[%emt
00:00:34]} 2. c4 {[%clk 01:31:22]} {[%emt 00:00:05]} e6 {[%clk 01:30:52]}
{[%emt 00:00:04]} 3. Nf3 {[%clk 01:31:28]} {[%emt 00:00:25]} Bb4+ {[%clk
01:31:07]} {[%emt 00:00:14]} 4. Nbd2 {[%clk 01:31:52]} {[%emt 00:00:06]} b6
{[%clk 01:31:21]} {[%emt 00:00:16]} 5. a3 {[%clk 01:32:18]} {[%emt 00:00:04]}
Bxd2+ {[%clk 01:31:46]} {[%emt 00:00:05]} 6. Qxd2 {[%clk 01:32:45]} {[%emt
00:00:03]} a5 {[%clk 01:31:45]} {[%emt 00:00:31]} 7. b3 {[%clk 01:33:07]}
{[%emt 00:00:08]} Bb7 {[%clk 01:32:02]} {[%emt 00:00:12]} 8. e3 {[%clk
01:31:53]} {[%emt 00:01:45]} d6 {[%clk 01:32:21]} {[%emt 00:00:11]} 9. Bb2
{[%clk 01:30:06]} {[%emt 00:02:17]} Nbd7 {[%clk 01:32:34]} {[%emt 00:00:17]} 10.
Be2 {[%clk 01:30:20]} {[%emt 00:00:16]} O-O {[%clk 01:32:45]} {[%emt 00:00:18]}
11. O-O {[%clk 01:30:25]} {[%emt 00:00:27]} Qe7 {[%clk 01:33:07]} {[%emt
00:00:07]} 12. Qc2 {[%clk 01:27:29]} {[%emt 00:03:26]} Be4 {[%clk 01:29:57]}
{[%emt 00:03:39]} 13. Qc3 {[%clk 01:22:51]} {[%emt 00:05:09]} c6 {[%clk
01:29:06]} {[%emt 00:01:21]} 14. Nd2 {[%clk 01:17:26]} {[%emt 00:05:54]} Bg6
{[%clk 01:29:23]} {[%emt 00:00:12]} 15. f3 {[%clk 01:12:31]} {[%emt 00:05:26]}
Rfc8 {[%clk 01:26:05]} {[%emt 00:03:47]} 16. e4 {[%clk 01:00:19]} {[%emt
00:12:43]} d5 {[%clk 01:24:53]} {[%emt 00:01:42]} 17. Qe3 {[%clk 00:57:33]}
{[%emt 00:03:16]} dxe4 {[%clk 01:17:01]} {[%emt 00:08:22]} 18. fxe4 {[%clk
00:55:22]} {[%emt 00:02:41]} e5 {[%clk 01:16:23]} {[%emt 00:01:08]} 19. dxe5
{[%clk 00:48:47]} {[%emt 00:07:06]} Nxe5 {[%clk 01:12:59]} {[%emt 00:03:54]} 20.
Rad1 {[%clk 00:42:19]} {[%emt 00:06:58]} b5 {[%clk 00:37:08]} {[%emt 00:36:21]}
21. Qg5 {[%clk 00:32:49]} {[%emt 00:09:59]} Re8 {[%clk 00:36:19]} {[%emt
00:01:18]} 22. Kh1 {[%clk 00:18:53]} {[%emt 00:14:27]} h6 {[%clk 00:34:02]}
{[%emt 00:02:47]} 23. Qf4 {[%clk 00:18:16]} {[%emt 00:01:08]} b4 {[%clk
00:31:30]} {[%emt 00:03:02]} 24. Nf3 {[%clk 00:13:03]} {[%emt 00:05:43]} Ned7
{[%clk 00:28:02]} {[%emt 00:03:58]} 25. e5 {[%clk 00:12:24]} {[%emt 00:01:09]}
bxa3 {[%clk 00:26:33]} {[%emt 00:01:58]} 26. Ba1 {[%clk 00:07:31]} {[%emt
00:05:24]} Nh7 {[%clk 00:24:34]} {[%emt 00:02:29]} 27. Qg4 {[%clk 00:03:05]}
{[%emt 00:04:56]} Nc5 {[%clk 00:23:55]} {[%emt 00:01:09]} 28. Nd4 {[%clk
00:01:19]} {[%emt 00:02:16]} Qg5 {[%clk 00:20:16]} {[%emt 00:04:09]} 29. Nxc6
{[%clk 00:00:50]} {[%emt 00:01:00]} Nxb3 {[%clk 00:18:42]} {[%emt 00:02:03]} 30.
Qd7 {[%clk 00:01:18]} {[%emt 00:00:02]} Nf8 {[%clk 00:17:44]} {[%emt 00:01:28]}
31. Qd5 {[%clk 00:01:37]} {[%emt 00:00:12]} Ne6 {[%clk 00:16:45]} {[%emt
00:01:28]} 32. Bf3 {[%clk 00:01:18]} {[%emt 00:00:49]} a4 {[%clk 00:12:11]}
{[%emt 00:05:05]} 33. Qd6 {[%clk 00:01:24]} {[%emt 00:00:24]} Bh5 {[%clk
00:06:47]} {[%emt 00:05:54]} 34. Bxh5 {[%clk 00:00:51]} {[%emt 00:01:03]} Qxh5
{[%clk 00:07:10]} {[%emt 00:00:06]} 35. Qxa3 {[%clk 00:01:16]} {[%emt
00:00:06]} Qg4 {[%clk 00:05:20]} {[%emt 00:02:19]} 36. Ne7+ {[%clk 00:00:40]}
{[%emt 00:01:07]} Kh7 {[%clk 00:03:39]} {[%emt 00:02:11]} 37. Nd5 {[%clk
00:01:08]} {[%emt 00:00:02]} Qxc4 {[%clk 00:03:10]} {[%emt 00:00:58]} 38. Nb6
{[%clk 00:01:20]} {[%emt 00:00:18]} Qg4 {[%clk 00:02:47]} {[%emt 00:00:53]} 39.
Nxa8 {[%clk 00:01:42]} {[%emt 00:00:09]} Rxa8 {[%clk 00:03:12]} {[%emt
00:00:04]} 40. Bc3 {[%clk 00:00:56]} {[%emt 00:01:16]} Nbc5 {[%clk 00:02:41]}
{[%emt 00:01:02]} 41. h3 {[%clk 00:26:08]} {[%emt 00:05:48]} Qg6 {[%clk
00:32:29]} {[%emt 00:01:12]} 42. Be1 {[%clk 00:20:36]} {[%emt 00:06:02]} Kg8
{[%clk 00:30:07]} {[%emt 00:02:52]} 43. Qf3 {[%clk 00:14:32]} {[%emt 00:06:35]}
Rb8 {[%clk 00:30:18]} {[%emt 00:00:18]} 44. Bf2 {[%clk 00:12:45]} {[%emt
00:02:17]} Ne4 {[%clk 00:29:56]} {[%emt 00:00:52]} 45. Rfe1 {[%clk 00:07:49]}
{[%emt 00:05:25]} N6g5 {[%clk 00:29:26]} {[%emt 00:01:00]} 46. Qf4 {[%emt
00:09:20]} Rb4 {[%emt 00:03:51]} 47. Rd4 {[%clk 00:04:56]} Ne6 {[%clk
00:14:34]} {[%emt 00:06:34]} 48. Qxe4 {[%clk 00:04:22]} {[%emt 00:01:04]} Nxd4
{[%clk 00:14:58]} {[%emt 00:00:06]} 49. Qxg6 {[%clk 00:02:18]} {[%emt
00:02:34]} fxg6 {[%clk 00:15:20]} {[%emt 00:00:08]} 50. e6 {[%clk 00:02:46]}
{[%emt 00:00:03]} Kf8 {[%clk 00:14:09]} {[%emt 00:01:40]} 51. Re4 {[%clk
00:03:15]} a3 {[%clk 00:10:19]} {[%emt 00:04:21]} 52. Bxd4 {[%clk 00:02:51]}
{[%emt 00:00:54]} Ke8 {[%clk 00:09:27]} {[%emt 00:01:20]} 53. Re3 {[%clk
00:00:36]} {[%emt 00:02:47]} Rxd4 {[%emt 00:00:18]} 1/2-1/2

[Event "Tournoi de MI de l'Echiquier du Pays de Bray"]
[Site "Gournay-en-Bray, France"]
[Date "2023.05.20"]
[Round "8.3"]
[White "NIKCEVIC, Nebosja"]
[Black "LEFEBVRE, Hervé"]
[Result "1-0"]
[TimeControl "1h30/40 + 30 (30s/c)"]
[WhiteTitle "GM"]
[BlackTitle "FM"]
[WhiteFideId "901776"]
[BlackFideId "607363"]
[WhiteElo "2373"]
[BlackElo "2161"]

1. Nf3 {[%clk 01:30:49]} {[%emt 00:00:09]} Nf6 {[%clk 01:30:46]} {[%emt
00:00:15]} 2. c4 {[%clk 01:31:06]} {[%emt 00:00:13]} g6 {[%clk 01:30:31]}
{[%emt 00:00:46]} 3. Nc3 {[%clk 01:31:24]} {[%emt 00:00:11]} Bg7 {[%clk
01:30:52]} {[%emt 00:00:09]} 4. d4 {[%clk 01:31:22]} {[%emt 00:00:32]} O-O
{[%clk 01:29:14]} {[%emt 00:02:09]} 5. e4 {[%clk 01:31:47]} {[%emt 00:00:04]}
d6 {[%clk 01:29:31]} {[%emt 00:00:13]} 6. h3 {[%clk 01:32:11]} {[%emt
00:00:06]} e5 {[%clk 01:28:25]} {[%emt 00:01:36]} 7. d5 {[%clk 01:32:26]}
{[%emt 00:00:15]} Nh5 {[%clk 01:27:46]} {[%emt 00:01:10]} 8. Nh2 {[%clk
01:32:19]} {[%emt 00:00:35]} Qe8 {[%clk 01:26:06]} {[%emt 00:02:11]} 9. Be2
{[%clk 01:30:50]} {[%emt 00:01:59]} Nf4 {[%clk 01:26:11]} {[%emt 00:00:25]} 10.
Bf3 {[%clk 01:31:12]} {[%emt 00:00:08]} f5 {[%clk 01:25:54]} {[%emt 00:00:48]}
11. g3 {[%clk 01:24:13]} {[%emt 00:07:28]} fxe4 {[%clk 01:20:22]} {[%emt
00:06:03]} 12. Nxe4 {[%clk 01:21:54]} {[%emt 00:02:49]} Nxh3 {[%clk 01:20:47]}
{[%emt 00:00:06]} 13. Ng4 {[%clk 01:08:00]} {[%emt 00:14:23]} Qf7 {[%clk
01:16:49]} {[%emt 00:04:29]} 14. Nef6+ {[%clk 00:51:44]} {[%emt 00:16:46]} Kh8
{[%clk 01:13:49]} {[%emt 00:03:30]} 15. Rxh3 {[%clk 00:50:11]} {[%emt
00:02:02]} Bxf6 {[%clk 01:13:24]} {[%emt 00:00:55]} 16. Nh6 {[%clk 00:48:56]}
{[%emt 00:01:45]} Qe7 {[%clk 01:08:01]} {[%emt 00:05:53]} 17. g4 {[%clk
00:47:38]} {[%emt 00:01:48]} e4 {[%clk 01:07:20]} {[%emt 00:01:11]} 18. Be2
{[%clk 00:48:00]} {[%emt 00:00:07]} Na6 {[%clk 01:03:20]} {[%emt 00:04:31]} 19.
Rb1 {[%clk 00:46:28]} {[%emt 00:02:02]} Nc5 {[%clk 01:00:26]} {[%emt 00:03:24]}
20. Be3 {[%clk 00:44:00]} {[%emt 00:02:57]} a5 {[%clk 01:00:30]} {[%emt
00:00:28]} 21. Qd2 {[%clk 00:43:32]} {[%emt 00:00:58]} Bd7 {[%clk 00:58:29]}
{[%emt 00:02:30]} 22. Kf1 {[%clk 00:43:36]} {[%emt 00:00:26]} Qg7 {[%clk
00:39:24]} {[%emt 00:19:35]} 23. Kg2 {[%clk 00:42:06]} {[%emt 00:02:00]} a4
{[%clk 00:24:00]} {[%emt 00:15:55]} 24. Rh2 {[%clk 00:42:17]} {[%emt 00:00:18]}
Nd3 {[%clk 00:21:58]} {[%emt 00:02:32]} 25. g5 {[%clk 00:41:18]} {[%emt
00:01:29]} Be5 {[%clk 00:22:22]} {[%emt 00:00:07]} 26. Rh4 {[%clk 00:41:43]}
{[%emt 00:00:04]} Bf5 {[%clk 00:04:20]} {[%emt 00:18:32]} 27. Rbh1 {[%clk
00:38:05]} {[%emt 00:04:07]} a3 {[%clk 00:02:47]} {[%emt 00:02:04]} 28. b3
{[%clk 00:34:55]} {[%emt 00:03:39]} Rae8 {[%clk 00:03:00]} {[%emt 00:00:17]} 29.
Bxd3 {[%clk 00:25:15]} {[%emt 00:10:09]} exd3 {[%clk 00:03:22]} {[%emt
00:00:08]} 30. Nxf5 {[%clk 00:25:32]} {[%emt 00:00:13]} Rxf5 {[%clk 00:03:35]}
{[%emt 00:00:17]} 31. Qxd3 {[%clk 00:25:46]} {[%emt 00:00:16]} Ref8 {[%clk
00:03:14]} {[%emt 00:00:52]} 32. Qe4 {[%clk 00:23:21]} {[%emt 00:02:55]} Qf7
{[%clk 00:03:03]} {[%emt 00:00:40]} 33. Rxh7+ {[%clk 00:18:25]} {[%emt
00:05:26]} Qxh7 {[%clk 00:03:29]} {[%emt 00:00:04]} 34. Rxh7+ {[%clk 00:18:48]}
{[%emt 00:00:07]} Kxh7 {[%clk 00:03:58]} 35. Qh4+ {[%clk 00:19:11]} {[%emt
00:00:07]} Kg7 {[%clk 00:00:53]} {[%emt 00:03:36]} 36. c5 {[%clk 00:15:01]}
{[%emt 00:04:40]} Rh8 {[%clk 00:00:39]} {[%emt 00:00:45]} 37. Qb4 {[%clk
00:14:13]} {[%emt 00:01:18]} dxc5 {[%clk 00:00:39]} {[%emt 00:00:30]} 38. Qxc5
{[%clk 00:13:30]} {[%emt 00:01:13]} b6 {[%clk 00:00:31]} {[%emt 00:00:39]} 39.
Qe7+ {[%clk 00:11:51]} {[%emt 00:02:08]} Kg8 {[%clk 00:00:57]} {[%emt
00:00:04]} 40. f4 {[%clk 00:03:42]} {[%emt 00:08:39]} Bd6 {[%clk 00:01:20]}
{[%emt 00:00:08]} 41. Qe8+ {[%clk 00:01:19]} {[%emt 00:02:52]} Kh7 {[%clk
00:26:19]} {[%emt 00:06:01]} 42. Qd7+ {[%clk 00:32:33]} {[%emt 00:00:16]} Kg8
{[%clk 00:26:05]} {[%emt 00:00:45]} 43. Bd4 {[%clk 00:32:57]} {[%emt 00:00:06]}
Bf8 {[%clk 00:25:46]} {[%emt 00:00:49]} 44. Qe6+ {[%clk 00:28:34]} {[%emt
00:04:52]} Kh7 {[%clk 00:25:50]} {[%emt 00:00:26]} 45. Be5 {[%clk 00:28:02]}
{[%emt 00:01:01]} 1-0

[Event "Tournoi de MI de l'Echiquier du Pays de Bray"]
[Site "Gournay-en-Bray, France"]
[Date "2023.05.20"]
[Round "8.4"]
[White "DEFROMONT, Benjamin"]
[Black "DUBESSAY, Bastien"]
[Result "1-0"]
[TimeControl "1h30/40 + 30 (30s/c)"]
[WhiteTitle "FM"]
[BlackTitle "FM"]
[WhiteFideId "36068829"]
[BlackFideId "650048"]
[WhiteElo "2347"]
[BlackElo "2283"]

1. d4 {[%clk 01:30:57]} {[%emt 00:00:03]} d5 {[%clk 01:30:02]} {[%emt
00:00:59]} 2. c4 {[%clk 01:31:03]} {[%emt 00:00:23]} e6 {[%clk 01:30:25]}
{[%emt 00:00:07]} 3. Nf3 {[%clk 01:31:08]} {[%emt 00:00:25]} a6 {[%clk
01:29:12]} {[%emt 00:01:44]} 4. g3 {[%clk 01:24:12]} {[%emt 00:07:24]} dxc4
{[%clk 01:28:18]} {[%emt 00:01:24]} 5. a4 {[%clk 01:21:19]} {[%emt 00:03:24]}
Nc6 {[%clk 01:25:42]} {[%emt 00:03:06]} 6. Bg2 {[%clk 01:20:39]} {[%emt
00:01:09]} Nf6 {[%clk 01:25:58]} {[%emt 00:00:15]} 7. O-O {[%clk 01:20:31]}
{[%emt 00:00:38]} Rb8 {[%clk 01:25:50]} {[%emt 00:00:38]} 8. a5 {[%clk
01:20:18]} {[%emt 00:00:43]} h6 {[%clk 01:11:35]} {[%emt 00:14:45]} 9. Qa4
{[%clk 01:17:37]} {[%emt 00:03:10]} Bd6 {[%clk 01:05:37]} {[%emt 00:06:28]} 10.
Ne5 {[%clk 01:10:57]} {[%emt 00:07:11]} Bxe5 11. dxe5 {[%clk 01:10:57]} Nd5 12.
b3 {[%clk 01:10:57]} c3 13. Ba3 {[%clk 01:10:57]} Bd7 14. Bxd5 {[%clk
01:10:57]} exd5 15. Nxc3 {[%clk 01:10:57]} Nxe5 16. Qd4 {[%clk 01:10:57]} f6 17.
Rad1 {[%clk 01:10:57]} c6 18. f4 {[%clk 01:10:57]} Ng6 19. e4 {[%clk 01:10:57]}
b6 20. axb6 {[%clk 01:10:57]} Qxb6 21. Bc5 {[%clk 01:10:57]} Qb7 22. Bd6 {[%clk
01:10:57]} Rd8 23. Na4 {[%clk 01:10:57]} Kf7 24. Nc5 {[%clk 01:10:57]} Qb5 25.
exd5 {[%clk 01:10:57]} Be8 26. Ne4 {[%clk 01:10:57]} Kg8 27. f5 {[%clk
01:10:57]} cxd5 28. Bc7 {[%clk 01:10:57]} Ne5 29. Nxf6+ {[%clk 01:10:57]} gxf6
30. Bxd8 {[%clk 01:10:57]} Kg7 31. Qxd5 {[%clk 01:10:57]} Qxd5 32. Rxd5 {[%clk
01:10:57]} Bb5 33. Rc1 {[%clk 01:10:57]} Re8 34. Rc7+ {[%clk 01:10:57]} Kg8 35.
Bxf6 {[%clk 01:10:57]} Nf3+ 36. Kg2 {[%clk 01:10:57]} Ne1+ 37. Kh3 {[%clk
01:10:57]} Bf1+ 38. Kh4 {[%clk 01:10:57]} Be2 39. Rd8 {[%clk 01:10:57]} Nf3+ 40.
Kh3 {[%clk 01:10:57]} Bf1+ 41. Kg4 {[%clk 01:10:57]} Ne5+ 42. Kf4 {[%clk
01:10:57]} Nd3+ 43. Kf3 {[%clk 01:10:57]} Be2+ 44. Kg2 {[%clk 01:10:57]} Ne1+
45. Kg1 {[%clk 01:10:57]} 1-0